fUST/lending_fUST_20240817
["ID","MTS","AMOUNT","RATE_DAILY","PERIOD"]
[335142097,1723890654236,-500.0,0.00022739,2]
[335142098,1723890654246,-1232.8,0.00022739,2]
[335142099,1723890654258,-500.0,0.00022739,2]
[335142100,1723890654270,-174.37698003,0.00022739,2]
[335142101,1723890654280,-500.0,0.00022739,2]
[335142102,1723890654291,-500.0,0.00022739,2]
[335142103,1723890654300,-500.0,0.00022739,2]
[335142104,1723890654311,-543.94,0.00022739,2]
[335142105,1723890654321,-571.25,0.00022739,2]
[335142106,1723890654330,-593.8840288,0.00022739,2]
[335142107,1723890654340,-500.0,0.00022739,2]
[335142108,1723890654350,-503.76,0.00022739,2]
[335142109,1723890654359,-725.37,0.00022739,2]
[335142110,1723890654368,-500.0,0.00022739,2]
[335142111,1723890654377,-500.0,0.00022739,2]
[335142112,1723890654387,-217.668022,0.00022739,7]
[335142113,1723890654398,-864.264814,0.00022739,7]
[335142114,1723890654407,-582.58,0.00022739,2]
[335142115,1723890654424,-217.668022,0.00022739,7]
[335142116,1723890654434,-739.32,0.00022739,2]
[335142117,1723890654452,-864.264814,0.00022739,7]
[335142118,1723890654473,-1438.68,0.00022739,2]
[335142119,1723890654491,-500.0,0.00022739,2]
[335142120,1723890654511,-2248.55,0.00022739,2]
[335142121,1723890654530,-769.77,0.00022739,2]
[335142122,1723890654548,-657.64,0.00022739,2]
[335142123,1723890654567,-590.2,0.00022739,2]
[335142124,1723890654582,-788.03,0.00022739,2]
[335142125,1723890654599,-2904.2,0.00022739,2]
[335142126,1723890654621,-500.0,0.00022739,2]
[335142127,1723890654637,-500.0,0.00022739,2]
[335142128,1723890654653,-500.0,0.00022739,2]
[335142129,1723890654671,-500.0,0.00022739,2]
[335142130,1723890654689,-500.0,0.00022739,2]
[335142131,1723890654704,-737.6,0.00022739,2]
[335142132,1723890654719,-1067.82,0.00022739,2]
[335142133,1723890654736,-22187.11,0.00022739,2]
[335142134,1723890654751,-6948.85,0.00022739,2]
[335142135,1723890654765,-1369.92,0.00022739,2]
[335142136,1723890654780,-668.08,0.00022739,2]
[335142137,1723890654795,-1067.8,0.00022739,2]
[335142138,1723890654811,-2952.04,0.00022739,2]
[335142139,1723890654827,-1761.64,0.00022739,2]
[335142140,1723890654842,-500.0,0.00022739,2]
[335142141,1723890654859,-1088.19,0.00022739,2]
[335142142,1723890654873,-500.0,0.00022739,2]
[335142143,1723890654889,-500.0,0.00022739,2]
[335142144,1723890654904,-616.8,0.00022739,2]
[335142145,1723890654919,-1664.5,0.00022739,2]
[335142146,1723890654933,-500.0,0.00022739,2]
[335142147,1723890654949,-869.36,0.00022739,2]
[335142148,1723890654965,-905.39,0.00022739,2]
[335142149,1723890654981,-1108.77,0.00022739,2]
[335142150,1723890654996,-500.0,0.00022739,2]
[335142151,1723890655013,-520.66936567,0.00022739,2]
[335142152,1723890655027,-500.0,0.00022739,2]
[335142153,1723890655046,-2520.02,0.00022739,2]
[335142154,1723890655060,-569.78,0.00022739,2]
[335142155,1723890655073,-500.0,0.00022739,2]
[335142156,1723890655090,-3853.14,0.00022739,2]
[335142157,1723890655105,-2333.05,0.00022739,2]
[335142158,1723890655123,-679.93,0.00022739,2]
[335142159,1723890655140,-500.60785318,0.00022739,2]
[335142160,1723890655155,-500.0,0.00022739,2]
[335142161,1723890655171,-500.0,0.00022739,2]
[335142162,1723890655187,-521.59,0.00022739,2]
[335142163,1723890655203,-576.25125196,0.00022739,2]
[335142164,1723890655219,-2770.69,0.00022739,2]
[335142165,1723890655235,-692.79,0.00022739,2]
[335142166,1723890655251,-500.28,0.00022739,2]
[335142167,1723890655265,-500.0,0.00022739,2]
[335142168,1723890655281,-500.0,0.00022739,2]
[335142169,1723890655297,-1389.6,0.00022739,2]
[335142170,1723890655312,-500.0,0.00022739,2]
[335142171,1723890655327,-500.0,0.00022739,2]
[335142172,1723890655341,-4570.81,0.00022739,2]
[335142173,1723890655357,-531.66,0.00022739,2]
[335142174,1723890655372,-500.0,0.00022739,2]
[335142175,1723890655389,-500.0,0.00022739,2]
[335142176,1723890655404,-465.00005103,0.0002291,2]
[335142177,1723890655416,-150.112233,0.00023,2]
[335142178,1723890655428,-810.49,0.00023012,2]
[335142179,1723890655440,-500.0,0.00023012,2]
[335142180,1723890655450,-500.0,0.00023012,2]
[335142181,1723890655460,-500.0,0.00023012,2]
[335142182,1723890655620,-1302.46,0.00023012,2]
[335142183,1723890655646,-3815.52,0.00023012,2]
[335142184,1723890655657,-1463.19,0.00023012,2]
[335142185,1723890655671,-1313.81,0.00023012,2]
[335142186,1723890655681,-500.0,0.00023012,2]
[335142187,1723890655690,-557.32,0.00023012,2]
[335142188,1723890655699,-500.0,0.00023012,2]
[335142189,1723890655709,-500.0,0.00023012,2]
[335142190,1723890655718,-4587.93,0.00023012,2]
[335142191,1723890655728,-1281.48,0.00023012,2]
[335142192,1723890655739,-500.0,0.00023012,2]
[335142193,1723890655749,-1296.99,0.00023012,2]
[335142194,1723890655760,-500.0,0.00023012,2]
[335142195,1723890655773,-1380.37,0.00023012,2]
[335142196,1723890655783,-500.0,0.00023012,2]
[335142197,1723890655794,-3297.99,0.00023012,2]
[335142198,1723890655803,-500.0,0.00023012,2]
[335142199,1723890655814,-2369.1,0.00023012,2]
[335142200,1723890655825,-500.0,0.00023012,2]
[335142201,1723890655836,-3259.07,0.00023012,2]
[335142202,1723890655849,-500.0,0.00023012,2]
[335142203,1723890655861,-317.04327813,0.00023012,2]
[335142204,1723890655871,-500.0,0.00023012,2]
[335142205,1723890655882,-2059.73,0.00023012,2]
[335142206,1723890655895,-558.53,0.00023012,2]
[335142207,1723890655905,-500.0,0.00023012,2]
[335142208,1723890655916,-500.0,0.00023012,2]
[335142209,1723890655926,-500.0,0.00023012,2]
[335142210,1723890655936,-500.0,0.00023012,2]
[335142211,1723890655946,-1089.27,0.00023012,2]
[335142212,1723890655956,-500.0,0.00023012,2]
[335142213,1723890655966,-500.0,0.00023012,2]
[335142214,1723890655976,-4118.73,0.00023012,2]
[335142215,1723890655987,-537.86,0.00023012,2]
[335142216,1723890655998,-500.0,0.00023012,2]
[335142217,1723890656009,-500.0,0.00023013,2]
[335142218,1723890656019,-194.09894855,0.00023013,2]
[335142219,1723890656029,-500.0,0.00023013,2]
[335142220,1723890656044,-500.0,0.00023013,2]
[335142221,1723890656056,-500.0,0.00023013,2]
[335142222,1723890656066,-500.0,0.00023013,2]
[335142223,1723890656077,-500.0,0.00023013,2]
[335142224,1723890656088,-500.0,0.00023013,2]
[335142225,1723890656100,-500.0,0.00023013,2]
[335142226,1723890656110,-500.0,0.00023013,2]
[335142227,1723890656122,-500.0,0.00023013,2]
[335142228,1723890656132,-500.0,0.00023013,2]
[335142229,1723890656142,-500.0,0.00023013,2]
[335142230,1723890656152,-500.0,0.00023013,2]
[335142231,1723890656161,-500.0,0.00023013,2]
[335142232,1723890656173,-500.0,0.00023013,2]
[335142233,1723890656183,-500.0,0.00023013,2]
[335142234,1723890656195,-500.0,0.00023013,2]
[335142235,1723890656204,-500.0,0.00023013,2]
[335142236,1723890656215,-500.0,0.00023013,2]
[335142237,1723890656225,-500.0,0.00023013,2]
[335142238,1723890656236,-500.0,0.00023013,2]
[335142239,1723890656248,-500.0,0.00023013,2]
[335142240,1723890656259,-575.75,0.00023013,2]
[335142241,1723890656270,-500.0,0.00023013,2]
[335142242,1723890656282,-500.0,0.00023013,2]
[335142243,1723890656293,-500.0,0.00023013,2]
[335142244,1723890656303,-500.0,0.00023013,2]
[335142245,1723890656314,-500.0,0.00023013,2]
[335142246,1723890656324,-500.0,0.00023013,2]
[335142247,1723890656335,-497.7047255,0.00023013,2]
[335142248,1723890656346,-288.21888033,0.00023013,2]
[335142249,1723890656356,-500.0,0.00023013,2]
[335142250,1723890656368,-500.0,0.00023013,2]
[335142251,1723890656377,-500.0,0.00023013,2]
[335142252,1723890656387,-500.0,0.00023013,2]
[335142253,1723890656397,-528.48,0.00023013,2]
[335142254,1723890656406,-500.0,0.00023013,2]
[335142255,1723890656417,-572.01262525,0.00023013,2]
[335142256,1723890656426,-500.0,0.00023013,2]
[335142257,1723890656436,-500.0,0.00023013,2]
[335142258,1723890656446,-500.0,0.00023013,2]
[335142259,1723890656455,-500.0,0.00023013,2]
[335142260,1723890656464,-500.0,0.00023013,2]
[335142261,1723890656475,-500.0,0.00023013,2]
[335142262,1723890656484,-500.0,0.00023013,2]
[335142263,1723890656494,-500.0,0.00023013,2]
[335142264,1723890656503,-500.0,0.00023013,2]
[335142265,1723890656512,-500.0,0.00023013,2]
[335142266,1723890656523,-500.0,0.00023013,2]
[335142267,1723890656532,-500.0,0.00023013,2]
[335142268,1723890656542,-500.0,0.00023013,2]
[335142269,1723890656552,-500.0,0.00023013,2]
[335142270,1723890656562,-885.91,0.00023013,2]
[335142271,1723890656572,-500.0,0.00023013,2]
[335142272,1723890656581,-500.0,0.00023013,2]
[335142273,1723890656591,-500.0,0.00023013,2]
[335142274,1723890656600,-500.0,0.00023013,2]
[335142275,1723890656609,-500.0,0.00023013,2]
[335142276,1723890656619,-500.0,0.00023013,2]
[335142277,1723890656629,-500.0,0.00023013,2]
[335142278,1723890656639,-500.0,0.00023013,2]
[335142279,1723890656648,-500.0,0.00023013,2]
[335142280,1723890656658,-241.65588085,0.00023013,2]
[335142282,1723890656669,-500.0,0.00023013,2]
[335142283,1723890656678,-509.34422306,0.00023013,2]
[335142284,1723890656688,-500.0,0.00023013,2]
[335142285,1723890656697,-500.0,0.00023013,2]
[335142286,1723890656707,-500.0,0.00023013,2]
[335142287,1723890656716,-500.0,0.00023013,2]
[335142288,1723890656725,-500.0,0.00023013,2]
[335142289,1723890656735,-500.0,0.00023013,2]
[335142290,1723890656747,-642.6,0.00023013,2]
[335142291,1723890656757,-500.0,0.00023013,2]
[335142292,1723890656767,-500.0,0.00023013,2]
[335142293,1723890656776,-529.2,0.00023013,2]
[335142294,1723890656787,-500.0,0.00023013,2]
[335142295,1723890656798,-535.20387573,0.00023013,2]
[335142296,1723890656808,-500.0,0.00023013,2]
[335142297,1723890656819,-3128.21,0.00023013,2]
[335142298,1723890656829,-500.0,0.00023013,2]
[335142299,1723890656840,-500.55,0.00023013,2]
[335142300,1723890656851,-500.0,0.00023013,2]
[335142301,1723890656861,-500.0,0.00023013,2]
[335142302,1723890656870,-500.0,0.00023013,2]
[335142303,1723890656882,-500.0,0.00023013,2]
[335142304,1723890656893,-500.0,0.00023013,2]
[335142305,1723890656903,-500.0,0.00023013,2]
[335142306,1723890656912,-500.0,0.00023013,2]
[335142307,1723890656923,-500.0,0.00023013,2]
[335142308,1723890656933,-500.0,0.00023013,2]
[335142309,1723890656944,-500.0,0.00023013,2]
[335142310,1723890656955,-1197.09,0.00023013,2]
[335142311,1723890656966,-663.25,0.00023013,2]
[335142312,1723890656976,-500.0,0.00023013,2]
[335142313,1723890656988,-500.0,0.00023013,2]
[335142314,1723890656999,-500.0,0.00023013,2]
[335142315,1723890657009,-553.57,0.00023013,2]
[335142316,1723890657019,-500.0,0.00023013,2]
[335142317,1723890657030,-500.0,0.00023013,2]
[335142318,1723890657044,-500.0,0.00023013,2]
[335142319,1723890657054,-833.32,0.00023013,2]
[335142320,1723890657066,-500.0,0.00023013,2]
[335142321,1723890657076,-400.95132157,0.00023013,2]
[335142322,1723890657088,-500.0,0.00023013,2]
[335142323,1723890657098,-593.58,0.00023013,2]
[335142324,1723890657109,-500.0,0.00023013,2]
[335142325,1723890657121,-635.22,0.00023013,2]
[335142326,1723890657131,-500.0,0.00023013,2]
[335142327,1723890657142,-500.0,0.00023013,2]
[335142328,1723890657152,-500.0,0.00023013,2]
[335142329,1723890657165,-1678.22,0.00023013,2]
[335142330,1723890657177,-500.0,0.00023013,2]
[335142331,1723890657188,-523.73,0.00023013,2]
[335142332,1723890657198,-500.0,0.00023013,2]
[335142333,1723890657208,-929.06,0.00023013,2]
[335142334,1723890657220,-500.0,0.00023013,2]
[335142335,1723890657232,-500.0,0.00023013,2]
[335142336,1723890657243,-500.0,0.00023013,2]
[335142337,1723890657256,-5055.53,0.00023013,2]
[335142338,1723890657266,-500.0,0.00023013,2]
[335142339,1723890657276,-726.16,0.00023013,2]
[335142340,1723890657286,-500.0,0.00023013,2]
[335142341,1723890657296,-500.0,0.00023013,2]
[335142342,1723890657307,-462.11006175,0.00023013,2]
[335142343,1723890657318,-651.69,0.00023013,2]
[335142344,1723890657329,-1917.36,0.00023013,2]
[335142345,1723890657341,-500.0,0.00023013,2]
[335142346,1723890657351,-555.68039923,0.00023013,2]
[335142347,1723890657361,-500.0,0.00023013,2]
[335142348,1723890657371,-785.84,0.00023013,2]
[335142349,1723890657381,-506.54063512,0.00023013,2]
[335142350,1723890657392,-505.58462888,0.00023013,2]
[335142351,1723890657402,-542.57,0.00023013,2]
[335142352,1723890657411,-500.0,0.00023013,2]
[335142353,1723890657421,-501.64,0.00023013,2]
[335142354,1723890657431,-1010.89,0.00023013,2]
[335142355,1723890657441,-500.0,0.00023013,2]
[335142356,1723890657450,-605.21,0.00023013,2]
[335142357,1723890657460,-500.0,0.00023013,2]
[335142358,1723890657471,-500.0,0.00023013,7]
[335142359,1723890657480,-530.09,0.00023013,2]
[335142360,1723890657492,-751.83,0.00023013,2]
[335142361,1723890657501,-500.0,0.00023013,2]
[335142362,1723890657512,-1556.4,0.00023013,2]
[335142363,1723890657523,-500.23,0.00023013,2]
[335142364,1723890657534,-752.59,0.00023013,2]
[335142365,1723890657544,-611.43,0.00023013,2]
[335142366,1723890657554,-500.0,0.00023013,2]
[335142367,1723890657565,-500.0,0.00023013,2]
[335142368,1723890657575,-500.0,0.00023013,2]
[335142369,1723890657587,-500.0,0.00023013,2]
[335142370,1723890657597,-668.57,0.00023013,2]
[335142371,1723890657607,-500.0,0.00023013,2]
[335142372,1723890657619,-500.0,0.00023013,2]
[335142373,1723890657629,-842.04,0.00023013,2]
[335142374,1723890657640,-794.65,0.00023013,2]
[335142375,1723890657651,-500.0,0.00023013,2]
[335142376,1723890657662,-500.0,0.00023013,2]
[335142377,1723890657674,-500.0,0.00023013,2]
[335142378,1723890657684,-500.0,0.00023013,2]
[335142379,1723890657694,-500.0,0.00023013,2]
[335142380,1723890657705,-500.0,0.00023013,2]
[335142381,1723890657715,-533.77,0.00023013,2]
[335142382,1723890657727,-545.57,0.00023013,2]
[335142383,1723890657738,-588.4,0.00023013,2]
[335142384,1723890657749,-500.0,0.00023013,2]
[335142385,1723890657759,-618.32,0.00023013,2]
[335142386,1723890657770,-500.0,0.00023013,2]
[335142387,1723890657780,-500.28,0.00023013,2]
[335142388,1723890657791,-885.0,0.00023013,2]
[335142389,1723890657802,-864.62,0.00023013,2]
[335142390,1723890657814,-448.42145175,0.00023013,2]
[335142391,1723890657825,-259.20784195,0.00023013,2]
[335142392,1723890657834,-514.86,0.00023013,2]
[335142393,1723890657844,-553.37,0.00023013,2]
[335142394,1723890657853,-693.53,0.00023013,2]
[335142395,1723890657863,-619.18,0.00023013,2]
[335142396,1723890657873,-1400.99,0.00023013,2]
[335142397,1723890657882,-500.0,0.00023013,2]
[335142398,1723890657891,-1038.37,0.00023013,2]
[335142399,1723890657901,-1018.27,0.00023013,2]
[335142400,1723890657910,-500.0,0.00023013,2]
[335142401,1723890657920,-500.0,0.00023013,2]
[335142402,1723890657930,-517.68,0.00023013,2]
[335142403,1723890657940,-500.0,0.00023013,2]
[335142404,1723890657949,-530.93,0.00023013,2]
[335142405,1723890657959,-655.89,0.00023013,2]
[335142406,1723890657971,-500.0,0.00023013,2]
[335142407,1723890657981,-500.0,0.00023013,2]
[335142408,1723890657990,-591.89,0.00023013,2]
[335142409,1723890658000,-500.0,0.00023013,2]
[335142410,1723890658009,-1232.8,0.00023013,2]
[335142411,1723890658019,-500.0,0.00023013,2]
[335142412,1723890658029,-500.0,0.00023013,2]
[335142413,1723890658043,-500.0,0.00023013,2]
[335142414,1723890658053,-500.0,0.00023013,2]
[335142415,1723890658063,-543.94,0.00023013,2]
[335142416,1723890658072,-571.25,0.00023013,2]
[335142417,1723890658191,-500.0,0.00023013,2]
[335142418,1723890658200,-503.76,0.00023013,2]
[335142419,1723890658210,-725.37,0.00023013,2]
[335142420,1723890658219,-500.0,0.00023013,2]
[335142421,1723890658229,-500.0,0.00023013,2]
[335142422,1723890658238,-217.668022,0.00023013,7]
[335142423,1723890658247,-864.264814,0.00023013,7]
[335142424,1723890658257,-582.58,0.00023013,2]
[335142425,1723890658266,-739.32,0.00023013,2]
[335142426,1723890658276,-217.668022,0.00023013,7]
[335142427,1723890658285,-864.264814,0.00023013,7]
[335142428,1723890658296,-1438.68,0.00023013,2]
[335142429,1723890658305,-500.0,0.00023013,2]
[335142430,1723890658315,-2248.55,0.00023013,2]
[335142431,1723890658324,-769.77,0.00023013,2]
[335142432,1723890658334,-657.64,0.00023013,2]
[335142433,1723890658344,-590.2,0.00023013,2]
[335142434,1723890658354,-788.03,0.00023013,2]
[335142435,1723890658364,-2904.2,0.00023013,2]
[335142436,1723890658373,-500.0,0.00023013,2]
[335142437,1723890658383,-500.0,0.00023013,2]
[335142438,1723890658393,-500.0,0.00023013,2]
[335142439,1723890658402,-500.0,0.00023013,2]
[335142440,1723890658411,-500.0,0.00023013,2]
[335142441,1723890658421,-737.6,0.00023013,2]
[335142442,1723890658431,-1067.82,0.00023013,2]
[335142443,1723890658440,-22187.11,0.00023013,2]
[335142444,1723890658449,-6948.85,0.00023013,2]
[335142445,1723890658459,-1369.92,0.00023013,2]
[335142446,1723890658469,-668.08,0.00023013,2]
[335142447,1723890658478,-1067.8,0.00023013,2]
[335142448,1723890658488,-2952.04,0.00023013,2]
[335142449,1723890658498,-1761.64,0.00023013,2]
[335142450,1723890658507,-500.0,0.00023013,2]
[335142451,1723890658517,-1088.19,0.00023013,2]
[335142452,1723890658526,-500.0,0.00023013,2]
[335142453,1723890658536,-500.0,0.00023013,2]
[335142454,1723890658545,-616.8,0.00023013,2]
[335142455,1723890658554,-1664.5,0.00023013,2]
[335142456,1723890658564,-500.0,0.00023013,2]
[335142457,1723890658574,-869.36,0.00023013,2]
[335142458,1723890658583,-905.39,0.00023013,2]
[335142459,1723890658593,-1108.77,0.00023013,2]
[335142460,1723890658603,-500.0,0.00023013,2]
[335142461,1723890658612,-500.0,0.00023013,2]
[335142462,1723890658622,-2520.02,0.00023013,2]
[335142463,1723890658632,-569.78,0.00023013,2]
[335142464,1723890658642,-500.0,0.00023013,2]
[335142465,1723890658651,-3853.14,0.00023013,2]
[335142466,1723890658661,-2333.05,0.00023013,2]
[335142467,1723890658680,-679.93,0.00023013,2]
[335142468,1723890658690,-500.0,0.00023013,2]
[335142469,1723890658700,-500.0,0.00023013,2]
[335142470,1723890658709,-521.59,0.00023013,2]
[335142471,1723890658719,-2770.69,0.00023013,2]
[335142472,1723890658729,-692.79,0.00023013,2]
[335142473,1723890658739,-500.28,0.00023013,2]
[335142474,1723890658749,-500.0,0.00023013,2]
[335142475,1723890658759,-500.0,0.00023013,2]
[335142476,1723890658769,-1389.6,0.00023013,2]
[335142477,1723890658778,-500.0,0.00023013,2]
[335142478,1723890658788,-500.0,0.00023013,2]
[335142479,1723890658798,-4570.81,0.00023013,2]
[335142480,1723890658808,-531.66,0.00023013,2]
[335142481,1723890658817,-500.0,0.00023013,2]
[335142482,1723890658826,-500.0,0.00023013,2]
[335142483,1723890658837,-810.49,0.00023276,2]
[335142484,1723890658846,-500.0,0.00023276,2]
[335142485,1723890658855,-500.0,0.00023276,2]
[335142486,1723890658865,-500.0,0.00023286,2]
[335142487,1723890658875,-500.0,0.00023286,2]
[335142488,1723890658885,-1302.46,0.00023286,2]
[335142489,1723890658894,-3815.52,0.00023286,2]
[335142490,1723890658904,-1463.19,0.00023286,2]
[335142491,1723890658914,-1313.81,0.00023286,2]
[335142492,1723890658924,-500.0,0.00023286,2]
[335142493,1723890658934,-557.32,0.00023286,2]
[335142494,1723890658943,-500.0,0.00023286,2]
[335142495,1723890658953,-4587.93,0.00023286,2]
[335142496,1723890658963,-1281.48,0.00023286,2]
[335142497,1723890658973,-500.0,0.00023286,2]
[335142498,1723890658982,-1296.99,0.00023286,2]
[335142499,1723890658992,-500.0,0.00023286,2]
[335142500,1723890659001,-1380.37,0.00023286,2]
[335142501,1723890659011,-500.0,0.00023286,2]
[335142502,1723890659020,-3297.99,0.00023286,2]
[335142503,1723890659030,-500.0,0.00023286,2]
[335142504,1723890659042,-2369.1,0.00023286,2]
[335142505,1723890659053,-500.0,0.00023286,2]
[335142506,1723890659063,-3259.07,0.00023286,2]
[335142507,1723890659073,-500.0,0.00023286,2]
[335142508,1723890659082,-500.0,0.00023286,2]
[335142509,1723890659094,-2059.73,0.00023286,2]
[335142510,1723890659104,-350.73824424,0.00023286,2]
[335142511,1723890662702,-24900.0,0.00020149,2]
[335142512,1723890662711,-500.0,0.00021917,2]
[335142513,1723890662721,-500.0,0.0002219,2]
[335142514,1723890662730,-500.0,0.00022191,2]
[335142515,1723890662739,-500.0,0.00022464,2]
[335142516,1723890662749,-500.0,0.00022738,2]
[335142517,1723890662758,-500.0,0.00023012,2]
[335142518,1723890662768,-207.79175576,0.00023286,2]
[335142519,1723890662780,-648.27597136,0.00023286,2]
[335142520,1723890662791,-500.0,0.00023286,2]
[335142521,1723890662801,-500.0,0.00023286,2]
[335142522,1723890662810,-500.0,0.00023286,2]
[335142523,1723890662819,-1089.27,0.00023286,2]
[335142524,1723890662829,-500.0,0.00023286,2]
[335142525,1723890662839,-500.0,0.00023286,2]
[335142526,1723890662848,-4118.73,0.00023286,2]
[335142527,1723890662857,-537.86,0.00023286,2]
[335142528,1723890662866,-500.0,0.00023286,2]
[335142529,1723890662876,-500.0,0.00023286,2]
[335142530,1723890662885,-500.0,0.00023287,2]
[335142531,1723890662895,-500.0,0.00023287,2]
[335142532,1723890662905,-500.0,0.00023287,2]
[335142533,1723890662914,-500.0,0.00023287,2]
[335142534,1723890662924,-500.0,0.00023287,2]
[335142535,1723890662934,-500.0,0.00023287,2]
[335142536,1723890662943,-500.0,0.00023287,2]
[335142537,1723890662953,-500.0,0.00023287,2]
[335142538,1723890662965,-500.0,0.00023287,2]
[335142539,1723890662975,-500.0,0.00023287,2]
[335142540,1723890662985,-500.0,0.00023287,2]
[335142541,1723890662995,-500.0,0.00023287,2]
[335142542,1723890663005,-507.77970041,0.00023287,2]
[335142543,1723890663015,-500.0,0.00023287,2]
[335142544,1723890663026,-500.0,0.00023287,2]
[335142545,1723890663037,-500.0,0.00023287,2]
[335142546,1723890663056,-500.0,0.00023287,2]
[335142547,1723890663067,-500.0,0.00023287,2]
[335142548,1723890663077,-500.0,0.00023287,2]
[335142549,1723890663089,-500.0,0.00023287,2]
[335142550,1723890663100,-500.0,0.00023287,2]
[335142551,1723890663110,-500.0,0.00023287,2]
[335142552,1723890663121,-575.75,0.00023287,2]
[335142553,1723890663131,-500.0,0.00023287,2]
[335142554,1723890663140,-285.73550189,0.00023287,2]
[335142555,1723890663151,-497.50089015,0.00023287,2]
[335142556,1723890663161,-500.0,0.00023287,2]
[335142557,1723890663173,-500.0,0.00023287,2]
[335142558,1723890663183,-502.40577743,0.00023287,2]
[335142559,1723890663194,-500.0,0.00023287,2]
[335142560,1723890663204,-500.0,0.00023287,2]
[335142561,1723890663214,-500.0,0.00023287,2]
[335142562,1723890663223,-500.0,0.00023287,2]
[335142563,1723890663232,-528.48,0.00023287,2]
[335142564,1723890663241,-500.0,0.00023287,2]
[335142565,1723890663250,-500.0,0.00023287,2]
[335142566,1723890663259,-500.0,0.00023287,2]
[335142567,1723890663269,-500.0,0.00023287,2]
[335142568,1723890663278,-500.0,0.00023287,2]
[335142569,1723890663288,-500.0,0.00023287,2]
[335142570,1723890663298,-500.0,0.00023287,2]
[335142571,1723890663307,-500.0,0.00023287,2]
[335142572,1723890663317,-500.0,0.00023287,2]
[335142573,1723890663326,-500.0,0.00023287,2]
[335142574,1723890663336,-636.92050402,0.00023287,2]
[335142575,1723890663345,-500.0,0.00023287,2]
[335142576,1723890663354,-500.0,0.00023287,2]
[335142577,1723890663364,-456.79596843,0.00023287,2]
[335142578,1723890663373,-885.91,0.00023287,2]
[335142579,1723890663382,-500.0,0.00023287,2]
[335142580,1723890663392,-500.0,0.00023287,2]
[335142581,1723890663401,-500.0,0.00023287,2]
[335142582,1723890663410,-304.0995594,0.00023287,2]
[335142583,1723890663420,-500.0,0.00023287,2]
[335142584,1723890663430,-500.0,0.00023287,2]
[335142585,1723890663439,-500.0,0.00023287,2]
[335142586,1723890663449,-500.0,0.00023287,2]
[335142587,1723890663458,-500.0,0.00023287,2]
[335142588,1723890663468,-500.0,0.00023287,2]
[335142589,1723890663478,-500.0,0.00023287,2]
[335142590,1723890663488,-500.0,0.00023287,2]
[335142591,1723890663498,-500.0,0.00023287,2]
[335142592,1723890663507,-306.07396677,0.00023287,2]
[335142593,1723890663516,-500.0,0.00023287,2]
[335142594,1723890663526,-500.0,0.00023287,2]
[335142595,1723890663536,-642.6,0.00023287,2]
[335142596,1723890663545,-206.07549867,0.00023287,2]
[335142597,1723890663554,-500.0,0.00023287,2]